lending/lending_fUSD_20240705
["ID","MTS","AMOUNT","RATE_DAILY","PERIOD"]
[331226143,1720143052844,-854.2,0.00021534,2]
[331226145,1720143052854,-854.2,0.00021534,2]
[331226147,1720143052864,-854.2,0.00021534,2]
[331226149,1720143052875,-208.81,0.00021549,2]
[331226151,1720143052885,-318.19,0.00021644,2]
[331226153,1720143052895,-528.5,0.00021671,2]
[331226155,1720143052905,-150.0,0.00021671,2]
[331226158,1720143052919,-150.0,0.00021671,2]
[331226160,1720143052929,-424.37,0.00021671,2]
[331226162,1720143052939,-150.0,0.00021671,2]
[331226164,1720143052951,-528.5,0.00021671,2]
[331226166,1720143052961,-709.66,0.00021671,2]
[331226168,1720143052970,-528.5,0.00021671,2]
[331226170,1720143052979,-150.0,0.00021671,2]
[331226172,1720143052989,-424.37,0.00021671,2]
[331226174,1720143052999,-424.37,0.00021671,2]
[331226176,1720143053010,-331.4026,0.00021698,2]
[331226178,1720143053019,-670.28609326,0.000217,2]
[331226180,1720143053029,-500.0,0.00021741,2]
[331226182,1720143053039,-500.0,0.00021742,2]
[331226185,1720143053049,-500.0,0.00021742,2]
[331226187,1720143053059,-200.0,0.00021742,2]
[331226189,1720143053069,-621.5,0.00021772,2]
[331226191,1720143053079,-3168.4282,0.00021798,2]
[331226193,1720143053088,-301.26550821,0.00021798,2]
[331226195,1720143053100,-953.22729324,0.00021798,2]
[331226198,1720143053112,-300.773385,0.00021798,2]
[331226200,1720143053124,-360.37808144,0.00021798,2]
[331226202,1720143053136,-683.38888749,0.00021798,2]
[331226204,1720143053147,-437.87272521,0.00021798,2]
[331226207,1720143053159,-430.63556072,0.00021798,2]
[331226209,1720143053170,-500.0008285,0.00021798,2]
[331226211,1720143053183,-25735.63394614,0.00021798,2]
[331226213,1720143053195,-6008.98818793,0.00021798,2]
[331226216,1720143053210,-645.0,0.00021798,2]
[331226218,1720143053222,-28880.35961047,0.00021798,2]
[331226240,1720143053432,-4968.29700994,0.00021798,2]
[331226242,1720143053444,-3529.30187106,0.00021798,2]
[331226245,1720143053458,-44781.60921649,0.00021798,2]
[331226247,1720143053470,-690.2065712,0.00021798,2]
[331226249,1720143053483,-108634.09991696,0.00021798,2]
[331226251,1720143053492,-150.0,0.000218,2]
[331226253,1720143053502,-670.28609324,0.000218,2]
[331226255,1720143053512,-328.97030595,0.00021807,2]
[331226258,1720143053522,-7500.0,0.00021817,2]
[331226260,1720143053532,-1000.0,0.00021817,2]
[331226262,1720143053542,-934.3271,0.00021817,2]
[331226264,1720143053551,-4539.70000552,0.00021817,2]
[331226266,1720143053562,-348.75980493,0.00021817,2]
[331226268,1720143053571,-165.53581265,0.00021817,2]
[331226270,1720143053582,-178.80616544,0.00021817,2]
[331226272,1720143053591,-201.88306987,0.00021817,2]
[331226274,1720143053601,-1590.18221,0.00021817,2]
[331226276,1720143053611,-868.10770587,0.00021831,2]
[331226278,1720143053620,-326.86708284,0.00021845,2]
[331226280,1720143053631,-414.1330102,0.00021851,2]
[331226282,1720143053641,-500.0,0.00021854,2]
[331226284,1720143053653,-500.0,0.00021854,2]
[331226286,1720143053662,-500.0,0.00021854,2]
[331226288,1720143053672,-500.0,0.00021854,2]
[331226290,1720143053682,-500.0,0.00021854,2]
[331226293,1720143053691,-500.0,0.00021854,2]
[331226295,1720143053704,-500.0,0.00021854,2]
[331226297,1720143053714,-500.0,0.00021854,2]
[331226299,1720143053723,-500.0,0.00021854,2]
[331226301,1720143053733,-500.0,0.00021854,2]
[331226303,1720143053742,-500.0,0.00021854,2]
[331226305,1720143053751,-500.0,0.00021854,2]
[331226307,1720143053761,-500.0,0.00021854,2]
[331226308,1720143053771,-500.0,0.00021854,2]
[331226311,1720143053781,-500.0,0.00021854,2]
[331226313,1720143053791,-500.0,0.00021854,2]
[331226315,1720143053801,-500.0,0.00021854,2]
[331226317,1720143053811,-500.0,0.00021854,2]
[331226319,1720143053822,-155.0,0.00021864,2]
[331226321,1720143053831,-500.0,0.00021888,2]
[331226323,1720143053840,-500.0,0.00021888,2]
[331226325,1720143053850,-500.0,0.00021888,2]
[331226327,1720143053860,-500.0,0.00021888,2]
[331226329,1720143053869,-500.0,0.00021888,2]
[331226331,1720143053879,-500.0,0.00021888,2]
[331226333,1720143053889,-500.0,0.00021888,2]
[331226335,1720143053899,-500.0,0.00021888,2]
[331226337,1720143053908,-500.0,0.00021888,2]
[331226339,1720143053918,-500.0,0.00021888,2]
[331226341,1720143053928,-500.0,0.00021888,2]
[331226343,1720143053937,-500.0,0.00021888,2]
[331226345,1720143053947,-500.0,0.00021888,2]
[331226347,1720143053957,-500.0,0.00021888,2]
[331226348,1720143053966,-500.0,0.00021888,2]
[331226349,1720143053976,-500.0,0.00021888,2]
[331226350,1720143053985,-500.0,0.00021888,2]
[331226352,1720143053995,-500.0,0.00021888,2]
[331226354,1720143054005,-500.0,0.00021888,2]
[331226376,1720143054015,-500.0,0.00021888,2]
[331226380,1720143054243,-500.0,0.00021888,2]
[331226383,1720143054252,-500.0,0.00021888,2]
[331226385,1720143054276,-500.0,0.00021888,2]
[331226387,1720143054287,-500.0,0.00021888,2]
[331226390,1720143054300,-500.0,0.00021888,2]
[331226392,1720143054311,-500.0,0.00021888,2]
[331226394,1720143054322,-500.0,0.00021888,2]
[331226396,1720143054333,-500.0,0.00021888,2]
[331226398,1720143054346,-500.0,0.00021888,2]
[331226400,1720143054357,-500.0,0.00021888,2]
[331226402,1720143054368,-500.0,0.00021888,2]
[331226404,1720143054379,-500.0,0.00021888,2]
[331226406,1720143054390,-500.0,0.00021888,2]
[331226408,1720143054400,-500.0,0.00021888,2]
[331226410,1720143054411,-500.0,0.00021888,2]
[331226412,1720143054421,-500.0,0.00021888,2]
[331226414,1720143054432,-500.0,0.00021888,2]
[331226416,1720143054441,-500.0,0.00021888,2]
[331226418,1720143054454,-500.0,0.00021888,2]
[331226420,1720143054465,-500.0,0.00021888,2]
[331226422,1720143054475,-500.0,0.00021888,2]
[331226424,1720143054484,-500.0,0.00021888,2]
[331226426,1720143054494,-500.0,0.00021888,2]
[331226428,1720143054504,-500.0,0.00021888,2]
[331226430,1720143054514,-500.0,0.00021888,2]
[331226432,1720143054524,-500.0,0.00021888,2]
[331226434,1720143054534,-500.0,0.00021888,2]
[331226436,1720143054544,-500.0,0.00021888,2]
[331226438,1720143054554,-500.0,0.00021888,2]
[331226440,1720143054564,-500.0,0.00021888,2]
[331226442,1720143054573,-500.0,0.00021888,2]
[331226444,1720143054584,-500.0,0.00021888,2]
[331226446,1720143054595,-500.0,0.00021888,2]
[331226447,1720143054605,-500.0,0.00021888,2]
[331226448,1720143054615,-500.0,0.00021888,2]
[331226449,1720143054625,-500.0,0.00021888,2]
[331226450,1720143054635,-500.0,0.00021888,2]
[331226451,1720143054646,-500.0,0.00021888,2]
[331226452,1720143054656,-500.0,0.00021888,2]
[331226453,1720143054666,-500.0,0.00021888,2]
[331226454,1720143054676,-500.0,0.00021888,2]
[331226455,1720143054686,-500.0,0.00021888,2]
[331226456,1720143054697,-500.0,0.00021888,2]
[331226457,1720143054709,-500.0,0.00021888,2]
[331226458,1720143054718,-500.0,0.00021888,2]
[331226459,1720143054728,-500.0,0.00021888,2]
[331226460,1720143054739,-500.0,0.00021888,2]
[331226461,1720143054749,-500.0,0.00021888,2]
[331226463,1720143054760,-500.0,0.00021888,2]
[331226465,1720143054770,-500.0,0.00021888,2]
[331226467,1720143054780,-500.0,0.00021888,2]
[331226469,1720143054790,-500.0,0.00021888,2]
[331226471,1720143054799,-500.0,0.00021888,2]
[331226473,1720143054809,-500.0,0.00021888,2]
[331226475,1720143054819,-500.0,0.00021888,2]
[331226477,1720143054829,-500.0,0.00021888,2]
[331226479,1720143054838,-500.0,0.00021888,2]
[331226480,1720143054848,-500.0,0.00021888,2]
[331226481,1720143054857,-500.0,0.00021888,2]
[331226482,1720143054867,-500.0,0.00021888,2]
[331226483,1720143054878,-500.0,0.00021888,2]
[331226484,1720143054888,-500.0,0.00021888,2]
[331226485,1720143054898,-500.0,0.00021888,2]
[331226486,1720143054908,-152.53,0.00021897,2]
[331226487,1720143054918,-8664.3219436,0.00021898,2]
[331226488,1720143054929,-365.84115231,0.00021899,2]
[331226489,1720143054939,-491.0,0.000219,4]
[331226490,1720143054950,-257.0,0.000219,2]
[331226491,1720143054960,-982.0,0.000219,4]
[331226492,1720143054971,-265.0,0.000219,2]
[331226493,1720143054981,-150.0,0.000219,3]
[331226494,1720143054991,-670.28609324,0.000219,2]
[331226495,1720143055000,-151965.37175271,0.00021907,2]
[331226496,1720143055015,-80755.28644928,0.00021907,2]
[331226497,1720143055026,-927.6934,0.00021907,2]
[331226498,1720143055838,440.6793,0.00031575,30]
[331226499,1720143092441,665.76199617,0.00031575,120]
[331226504,1720143163665,150.0,0.00031575,30]
[331226517,1720143238949,1082.54691152,0.00031575,30]
[331226519,1720143284753,156.9675909,0.00031575,60]
[331226526,1720143342052,6922.14738343,0.000112,2]
[331226527,1720143342084,6922.14738343,0.000112,2]
[331226528,1720143342115,4604.57379825,0.000112,2]
[331226529,1720143342146,5122.07045253,0.000112,2]
[331226530,1720143342180,135.85416847,0.000112,2]
[331226533,1720143384187,647.6087636,0.00031575,120]
[331226538,1720143402851,176.55132899,0.00031575,40]
[331226539,1720143405958,150.0359021,0.00031575,120]
[331226540,1720143420198,816164.0625014,0.000225,120]
[331226542,1720143434622,800.38110966,0.00031575,30]
[331226543,1720143434822,972.56178768,0.00031575,120]
[331226544,1720143437352,152.29199847,0.00026,120]
[331226546,1720143516347,607.37628734,0.00031575,120]
[331226547,1720143536971,1073.0105813,0.00031575,30]
[331226587,1720143936751,-288.0,0.00013584,2]
[331226588,1720143936775,-231.3013,0.000139,2]
[331226589,1720143936797,-3918.67348824,0.00013999,2]
[331226590,1720143936819,-150.0,0.00013999,2]
[331226591,1720143936845,-455412.02521176,0.00014,2]
[331226597,1720144117639,3061.33283175,0.00031573,120]
[331226600,1720144159421,-158.07428222,0.000139,2]
[331226602,1720144159463,-537.53537881,0.000139,2]
[331226603,1720144159504,-150.0,0.00013999,2]
[331226604,1720144159551,-6550.67358612,0.00014,2]
[331226605,1720144159611,-7396.28324715,0.00014,2]
[331226606,1720144159675,-7396.28324715,0.00014,2]
[331226607,1720144159735,-7396.28324715,0.00014,2]
[331226608,1720144159793,-3481.06072765,0.00014,2]
[331226609,1720144159852,-7396.28324715,0.00014,2]
[331226632,1720144233444,-42.80048879,0.00014,2]
[331226636,1720144233456,-38483.54518631,0.00014,2]
[331226658,1720144241217,-534.02114835,0.00014,2]
[331226662,1720144241229,-3742.70217563,0.00014,2]
[331226665,1720144241247,-6096.46871117,0.00014,2]
[331226670,1720144241261,-9553.154996,0.00014,2]
[331226674,1720144241272,-4330.79377774,0.00014,2]
[331226679,1720144241283,-555.74620253,0.00014,2]
[331226686,1720144241979,-360.86093302,0.00014,2]
[331226688,1720144241990,-1356.00596654,0.00014,2]
[331226690,1720144242001,-272.97893579,0.00014,2]
[331226693,1720144242012,-2015.415,0.00014,2]
[331226695,1720144242024,-2720.7805658,0.00014,2]
[331226697,1720144242036,-458922.40864501,0.00014,2]
[331226699,1720144242046,-150.0,0.00014986,2]
[331226701,1720144242055,-267.91466227,0.00015,14]
[331226703,1720144242065,-247344.75182202,0.00015,2]
[331226704,1720144242075,-537.53537877,0.00015114,2]
[331226705,1720144242085,-2675.0,0.000152,2]
[331226706,1720144242094,-652.0,0.000152,2]
[331226707,1720144242103,-599.92,0.00015623,2]
[331226708,1720144242112,-279.48882012,0.00016015,2]
[331226709,1720144242122,-4186.6712994,0.00016115,2]
[331226710,1720144242131,-475.52346486,0.00016315,2]
[331226711,1720144242141,-537.53537877,0.00016329,2]
[331226712,1720144242150,-413.44,0.00016664,2]
[331226713,1720144242160,-1734.06,0.00016664,2]
[331226714,1720144242169,-4186.67129937,0.00016731,2]
[331226715,1720144242182,-19868.38088314,0.00016969,2]
[331226716,1720144242191,-250.0,0.00017284,2]
[331226717,1720144242201,-4186.67129937,0.00017347,2]
[331226718,1720144242210,-1000.0,0.00017442,2]
[331226719,1720144242219,-4464.19164658,0.00017444,2]
[331226720,1720144242228,-172.38,0.00017525,2]
[331226721,1720144242238,-537.53537877,0.00017543,2]
[331226722,1720144242247,-177.42,0.00017564,2]
[331226723,1720144242257,-200.85,0.00017568,2]
[331226724,1720144242266,-250.0,0.00017578,2]
[331226725,1720144242277,-279.48882009,0.00017611,2]
[331226726,1720144242286,-23801.66,0.0001779,2]
[331226727,1720144242295,-599.92,0.00017887,2]
[331226728,1720144242304,-2588.85364462,0.00017889,2]
[331226729,1720144242313,-2836.8224236,0.00017889,2]
[331226730,1720144242323,-4186.67129937,0.00017963,2]
[331226731,1720144242332,-2379.44234405,0.00017999,2]
[331226732,1720144242341,-214.56,0.00018305,2]
[331226733,1720144242350,-4186.67129937,0.00018579,2]
[331226734,1720144242359,-338.194,0.00018621,2]
[331226735,1720144242368,-2031.50261352,0.00018717,2]
[331226736,1720144242378,-1289.7348321,0.00018717,2]
[331226737,1720144242387,-755.31740263,0.00018717,2]
[331226738,1720144242396,-537.53537877,0.00018757,2]
[331226739,1720144242405,-1378.90150302,0.00018759,2]
[331226740,1720144242415,-1523.28651001,0.00018759,2]
[331226741,1720144242424,-259.52814449,0.00018764,2]
[331226742,1720144242437,-649.13939335,0.00018835,2]
[331226743,1720144242446,-252.49810629,0.00018835,2]
[331226744,1720144242455,-600.06033415,0.00018835,7]
[331226745,1720144242464,-152.83,0.00018849,30]
[331226746,1720144242474,-266.94750147,0.00018864,2]
[331226747,1720144242485,-208.82288185,0.00018899,2]
[331226748,1720144242494,-245.0557517,0.00018899,2]
[331226749,1720144242503,-155.22396944,0.00018899,2]
[331226750,1720144242512,-155.14265503,0.00018899,2]
[331226751,1720144242521,-196.69013977,0.00018899,2]
[331226752,1720144242531,-285.48807537,0.00018899,2]
[331226753,1720144242540,-152.53,0.000189,2]
[331226754,1720144242549,-458.56830439,0.00018919,2]
[331226755,1720144242558,-178.87034562,0.00018919,2]
[331226756,1720144242566,-815.56043739,0.00019,2]
[331226757,1720144242575,-1250.0,0.00019,2]
[331226758,1720144242584,-364.57425044,0.00019069,2]
[331226759,1720144242594,-227.17477303,0.00019177,2]
[331226760,1720144242603,-250.0,0.00019178,2]
[331226761,1720144242620,-4186.67129937,0.00019195,2]
[331226762,1720144242629,-279.48882009,0.00019208,2]
[331226763,1720144242638,-227.17477303,0.00019229,2]
[331226764,1720144242648,-789.83801182,0.0001935,2]
[331226765,1720144242659,-652.85645457,0.00019399,2]
[331226766,1720144242668,-414.18329626,0.00019451,2]
[331226767,1720144242678,-372.52897045,0.00019548,2]
[331226768,1720144242691,-1000.0,0.00019622,2]
[331226769,1720144242701,-529.32286142,0.00019725,2]
[331226770,1720144242710,-2191.79611168,0.000198,2]
[331226771,1720144242719,-4186.67129937,0.0001981,2]
[331226772,1720144242728,-166.15479684,0.00019813,2]
[331226773,1720144242738,-244614.655266,0.000199,2]
[331226775,1720144242747,-155.32356774,0.00019964,2]
[331226777,1720144242757,-537.53537877,0.00019971,2]
[331226779,1720144242766,-479.84452863,0.0001999,2]
[331226781,1720144242776,-2233.19859384,0.0002,4]
[331226783,1720144242785,-2721.44900162,0.0002,7]
[331226785,1720144242795,-584.62,0.0002,2]
[331226787,1720144242806,-599.92,0.00020151,2]
[331226789,1720144242815,-162.46734398,0.000203,2]
[331226791,1720144242824,-4186.67129937,0.00020426,2]
[331226793,1720144242833,-199584.74777201,0.0002068,2]
[331226795,1720144242843,-279.48882009,0.00020804,2]
[331226797,1720144242852,-152.53,0.00020987,2]
[331226799,1720144242861,-29887.06241991,0.00020997,3]
[331226801,1720144242871,-189.3277,0.00021018,2]
[331226803,1720144242880,-4186.67129937,0.00021042,2]
[331226805,1720144242889,-177.42,0.00021077,2]
[331226807,1720144242898,-537.53537877,0.00021186,2]
[331226809,1720144242907,-303.2,0.00021342,2]
[331226811,1720144242917,-150.0,0.00021342,2]
[331226813,1720144242926,-180.0,0.00021397,2]
[331226815,1720144242939,-5000.0,0.0002148,2]
[331226817,1720144242948,-1234.30999425,0.00021497,2]
[331226819,1720144242958,-46994.03231881,0.00021498,2]
[331226822,1720144242971,-85423.93165635,0.00021498,2]
[331226824,1720144242980,-354.9,0.00021644,2]
[331226826,1720144242989,-4186.67129937,0.00021658,2]
[331226828,1720144242998,-1329.65035,0.0002169,2]
[331226830,1720144243007,-6743.5554,0.00021698,2]
[331226832,1720144243016,-500.0,0.00021738,2]
[331226834,1720144243026,-876.0,0.0002178,2]
[331226836,1720144243036,-1000.0,0.00021803,2]
[331226838,1720144243046,-220.91,0.00021808,2]
[331226840,1720144243055,-167.91055181,0.00021817,2]
[331226842,1720144243065,-2531.26352428,0.00021817,2]
[331226844,1720144243074,-366.93305842,0.00021885,2]
[331226846,1720144243083,-6010.69560212,0.00021899,7]
[331226848,1720144243093,-491.0,0.000219,4]
[331226850,1720144243103,-257.0,0.000219,2]
[331226852,1720144243112,-10385.0571129,0.00021905,2]
[331226854,1720144243121,-152.53,0.00021907,2]
[331226856,1720144243130,-1175.59279508,0.00021907,5]
[331226858,1720144243140,-3528.3407931,0.00021907,2]
[331226860,1720144243149,-57577.8837964,0.00021907,2]
[331226862,1720144243159,-500.0,0.00021916,2]
[331226864,1720144243169,-333.71891536,0.00021916,2]
[331226866,1720144243178,-1000.0,0.00021916,2]
[331226868,1720144243194,-196.45619563,0.00021916,2]
[331226870,1720144243205,-4420.22835187,0.00021916,2]
[331226872,1720144243215,-644.99838241,0.00021916,2]
[331226873,1720144243223,-151.75764019,0.00021916,2]
[331226875,1720144243233,-1795.63003096,0.00021917,5]
[331226877,1720144243242,-677547.2873977,0.00021917,7]
[331226880,1720144243255,-48596.70783579,0.00021917,7]
[331226882,1720144243267,-6311.71721752,0.00021917,7]
[331226884,1720144243278,-14127.71042939,0.00021917,7]
[331226886,1720144243289,-302.85004585,0.00021917,7]
[331226889,1720144243301,-108255.90067797,0.00021917,7]
[331226891,1720144243310,-500.0,0.00021917,4]
[331226893,1720144243319,-500.0,0.00021917,4]
[331226895,1720144243329,-500.0,0.00021917,4]
[331226897,1720144243338,-500.0,0.00021917,4]
[331226899,1720144243347,-500.0,0.00021917,4]
[331226901,1720144243356,-500.0,0.00021917,4]
[331226903,1720144243365,-500.0,0.00021917,4]
[331226905,1720144243374,-500.0,0.00021917,4]
[331226907,1720144243384,-500.0,0.00021917,4]
[331226909,1720144243393,-500.0,0.00021917,4]
[331226911,1720144243402,-500.0,0.00021917,4]
[331226913,1720144243411,-500.0,0.00021917,4]
[331226915,1720144243419,-500.0,0.00021917,4]
[331226917,1720144243429,-500.0,0.00021917,4]
[331226919,1720144243444,-500.0,0.00021917,4]
[331226921,1720144243454,-500.0,0.00021917,4]
[331226922,1720144243463,-500.0,0.00021917,4]
[331226924,1720144243472,-500.0,0.00021917,4]
[331226926,1720144243481,-500.0,0.00021917,4]
[331226929,1720144243491,-500.0,0.00021917,4]
[331226931,1720144243501,-500.0,0.00021917,4]
[331226933,1720144243511,-500.0,0.00021917,4]
[331226935,1720144243520,-500.0,0.00021917,4]
[331226937,1720144243530,-364.40535717,0.00021917,4]
[331226939,1720144243540,-525.3,0.00021917,4]
[331226941,1720144243549,-525.3,0.00021917,4]
[331226943,1720144243558,-525.3,0.00021917,4]
[331226945,1720144243568,-525.3,0.00021917,4]
[331226947,1720144243577,-525.3,0.00021917,4]
[331226949,1720144243586,-525.3,0.00021917,4]
[331226951,1720144243595,-525.3,0.00021917,4]
[331226953,1720144243606,-525.3,0.00021917,4]
[331226955,1720144243621,-525.3,0.00021917,4]
[331226957,1720144243630,-525.3,0.00021917,4]
[331226959,1720144243640,-525.3,0.00021917,4]
[331226960,1720144243650,-525.3,0.00021917,4]
[331226962,1720144243661,-525.3,0.00021917,4]
[331226965,1720144243671,-525.3,0.00021917,4]
[331226967,1720144243687,-525.3,0.00021917,4]
[331226968,1720144243700,-525.3,0.00021917,4]
[331226970,1720144243710,-525.3,0.00021917,4]
[331226973,1720144243720,-525.3,0.00021917,4]
[331226975,1720144243730,-525.3,0.00021917,4]
[331226977,1720144243740,-525.3,0.00021917,4]
[331226979,1720144243749,-525.3,0.00021917,4]
[331226981,1720144243761,-525.3,0.00021917,4]
[331226983,1720144243771,-525.3,0.00021917,4]
[331226985,1720144243782,-525.48382396,0.00021917,4]
[331226987,1720144243791,-500.0,0.00021917,4]
[331226989,1720144243802,-500.0,0.00021917,4]
[331226991,1720144243815,-500.0,0.00021917,4]
[331226993,1720144243825,-500.0,0.00021917,4]
[331226995,1720144243835,-500.0,0.00021917,4]
[331226997,1720144243845,-500.0,0.00021917,4]
[331226999,1720144243854,-500.0,0.00021917,4]
[331227001,1720144243864,-500.0,0.00021917,4]
[331227003,1720144243873,-380.13811001,0.00021917,4]
[331227470,1720144247762,-155.26736752,0.00014,2]
[331227473,1720144247772,-119.86188999,0.00021917,4]
[331227475,1720144247781,-500.0,0.00021917,4]
[331227477,1720144247790,-500.0,0.00021917,4]
[331227479,1720144247801,-500.0,0.00021917,4]
[331227481,1720144247810,-500.0,0.00021917,4]
[331227483,1720144247818,-500.0,0.00021917,4]
[331227485,1720144247827,-500.0,0.00021917,4]
[331227487,1720144247837,-500.0,0.00021917,4]
[331227489,1720144247846,-500.0,0.00021917,4]
[331227491,1720144247855,-500.0,0.00021917,4]
[331227493,1720144247864,-500.0,0.00021917,4]
[331227495,1720144247873,-500.0,0.00021917,4]
[331227497,1720144247882,-500.0,0.00021917,4]
[331227499,1720144247891,-354.85,0.00021917,4]
[331227502,1720144247900,-500.0,0.00021917,4]
[331227504,1720144247909,-500.0,0.00021917,4]
[331227505,1720144247918,-500.0,0.00021917,4]
[331227507,1720144247927,-500.0,0.00021917,4]
[331227509,1720144247940,-500.0,0.00021917,4]
[331227511,1720144247950,-500.0,0.00021917,4]
[331227513,1720144247958,-203.98940414,0.00021917,4]
[331227515,1720144247967,-500.0,0.00021917,4]
[331227518,1720144247977,-500.0,0.00021917,4]
[331227520,1720144247986,-500.0,0.00021917,4]
[331227522,1720144247995,-500.0,0.00021917,4]
[331227524,1720144248004,-500.0,0.00021917,4]
[331227526,1720144248014,-500.0,0.00021917,4]
[331227528,1720144248023,-500.0,0.00021917,4]
[331227530,1720144248032,-543.74,0.00021917,4]
[331227532,1720144248041,-500.0,0.00021917,4]
[331227534,1720144248050,-500.0,0.00021917,4]
[331227536,1720144248060,-500.0,0.00021917,4]
[331227537,1720144248069,-500.0,0.00021917,4]
[331227539,1720144248078,-317.81416351,0.00021917,4]
[331227540,1720144248087,-500.0,0.00021917,4]
[331227541,1720144248096,-500.0,0.00021917,4]
[331227542,1720144248105,-500.0,0.00021917,4]
[331227543,1720144248114,-279.17248614,0.00021917,4]
[331227544,1720144248123,-500.0,0.00021917,4]
[331227545,1720144248132,-500.0,0.00021917,4]
[331227546,1720144248141,-500.0,0.00021917,4]
[331227547,1720144248151,-312.83516748,0.00021917,4]
[331227548,1720144248160,-586.87,0.00021917,4]
[331227549,1720144248170,-586.87,0.00021917,4]
[331227551,1720144248181,-586.87,0.00021917,4]
[331227553,1720144248194,-586.87,0.00021917,4]
[331227555,1720144248203,-586.87,0.00021917,4]
[331227557,1720144248212,-586.87,0.00021917,4]
[331227559,1720144248222,-586.87,0.00021917,4]
[331227561,1720144248231,-586.87,0.00021917,4]
[331227563,1720144248241,-586.87,0.00021917,4]
[331227565,1720144248250,-586.87,0.00021917,4]
[331227567,1720144248259,-586.87,0.00021917,4]
[331227569,1720144248268,-586.87,0.00021917,4]
[331227571,1720144248278,-586.87,0.00021917,4]
[331227573,1720144248287,-586.87,0.00021917,4]
[331227575,1720144248296,-586.87,0.00021917,4]
[331227577,1720144248305,-586.87,0.00021917,4]
[331227579,1720144248314,-586.87,0.00021917,4]
[331227581,1720144248323,-586.87,0.00021917,4]
[331227583,1720144248332,-586.87,0.00021917,4]
[331227585,1720144248343,-586.87,0.00021917,4]
[331227587,1720144248353,-586.87,0.00021917,4]
[331227588,1720144248362,-586.87,0.00021917,4]
[331227590,1720144248371,-586.87,0.00021917,4]
[331227592,1720144248380,-586.88714168,0.00021917,4]
[331227595,1720144248390,-500.0,0.00021917,4]
[331227597,1720144248399,-500.0,0.00021917,4]
[331227599,1720144248408,-500.0,0.00021917,4]
[331227601,1720144248417,-500.0,0.00021917,4]
[331227603,1720144248426,-500.0,0.00021917,4]
[331227605,1720144248437,-500.0,0.00021917,4]
[331227607,1720144248446,-500.0,0.00021917,4]
[331227609,1720144248454,-500.0,0.00021917,4]
[331227611,1720144248463,-500.0,0.00021917,4]
[331227613,1720144248472,-500.0,0.00021917,4]
[331227615,1720144248481,-500.0,0.00021917,4]
[331227617,1720144248490,-500.0,0.00021917,4]
[331227619,1720144248499,-500.0,0.00021917,4]
[331227621,1720144248508,-500.0,0.00021917,4]
[331227623,1720144248517,-500.0,0.00021917,4]
[331227625,1720144248526,-500.0,0.00021917,4]
[331227627,1720144248536,-500.0,0.00021917,4]
[331227629,1720144248545,-500.0,0.00021917,4]
[331227631,1720144248554,-500.0,0.00021917,4]
[331227633,1720144248563,-500.0,0.00021917,4]
[331227634,1720144248572,-500.0,0.00021917,4]
[331227637,1720144248582,-500.0,0.00021917,4]
[331227639,1720144248591,-589.15093518,0.00021917,4]
[331227641,1720144248600,-1052.59,0.00021917,4]
[331227642,1720144248610,-1052.59,0.00021917,4]
[331227645,1720144248623,-1052.59,0.00021917,4]
[331227647,1720144248632,-1052.59,0.00021917,4]
[331227648,1720144248642,-1052.59,0.00021917,4]